bitfinex-derivatives/quotes_BTCF0:USTF0_20251118
["timestamp","ask_amount","ask_price","bid_price","bid_amount"]
[1763473599789,0.04207586,91372.0,91371.0,0.00016415]
[1763473600294,0.04207586,91372.0,91371.0,0.02236415]
[1763473600492,0.04207586,91372.0,91371.0,0.04535415]
[1763473603999,0.04207586,91372.0,91371.0,0.02236415]
[1763473604798,0.04207586,91372.0,91371.0,0.00016415]
[1763473605297,0.22136309,91381.0,91371.0,0.00016415]
[1763473605298,0.05860514,91381.0,91380.0,0.04519]
[1763473605486,0.04508,91381.0,91380.0,0.0744962]
[1763473605702,0.04508,91372.0,91371.0,0.04535415]
[1763473606183,1.5,91389.0,91388.0,0.04519]
[1763473607703,0.02467218,91390.0,91389.0,0.04519]
[1763473607897,0.04744218,91390.0,91389.0,0.04519]
[1763473608096,0.13826749,91390.0,91389.0,0.04519]
[1763473608494,0.09318749,91390.0,91389.0,0.04519]
[1763473608695,1.59318749,91390.0,91389.0,0.04519]
[1763473609099,1.59418749,91390.0,91389.0,0.04519]
[1763473609290,0.09198946,91390.0,91389.0,0.04519]
[1763473609994,0.09098946,91390.0,91389.0,0.04519]
[1763473610299,0.02093377,91390.0,91389.0,0.44519]
[1763473610704,0.00027351,91406.0,91405.0,0.04519]
[1763473611898,0.04535351,91406.0,91405.0,0.04519]
[1763473613300,0.00027351,91406.0,91405.0,0.04519]
[1763473613506,0.00127351,91406.0,91405.0,0.04519]
[1763473613807,0.00219803,91410.0,91409.0,0.04519]
[1763473615404,0.00319803,91410.0,91409.0,0.04519]
[1763473617915,0.04767803,91410.0,91409.0,0.04519]
[1763473618405,0.0447,91405.0,91404.0,0.05863]
[1763473619810,0.0457,91405.0,91404.0,0.05863]
[1763473621699,0.001,91405.0,91404.0,0.05863]
[1763473622312,0.0457,91405.0,91404.0,0.05863]
[1763473622816,0.02253,91401.0,91400.0,0.04568267]
[1763473623115,0.001,91405.0,91404.0,0.05834]
[1763473623611,0.0457,91405.0,91404.0,0.05834]
[1763473625110,0.0447,91401.0,91400.0,0.00073267]
[1763473625414,0.0447,91378.0,91377.0,0.05863]
[1763473626713,0.02253,91378.0,91377.0,0.05863]
[1763473626914,0.00219803,91380.0,91377.0,0.05863]
[1763473626915,0.00219803,91380.0,91379.0,0.04495]
[1763473629911,0.00016415,91387.0,91386.0,0.05834]
[1763473631617,0.04486415,91387.0,91386.0,0.03639]
[1763473631811,0.04486415,91387.0,91386.0,0.05834]
[1763473632518,0.04486415,91387.0,91386.0,0.05934]
[1763473632817,0.04586415,91387.0,91386.0,0.05934]
[1763473633015,0.00116415,91387.0,91386.0,0.05834]
[1763473634123,0.02369415,91387.0,91386.0,0.05834]
[1763473634714,0.00116415,91387.0,91386.0,0.05834]
[1763473637814,0.02369415,91387.0,91386.0,0.05834]
[1763473638119,0.02253,91378.0,91377.0,0.05863]
[1763473638420,0.00219803,91380.0,91379.0,0.04495]
[1763473638820,0.00116415,91387.0,91386.0,0.05834]
[1763473639916,0.00016415,91387.0,91386.0,0.05834]
[1763473640123,0.0392074,91406.0,91405.0,0.04341]
[1763473640317,0.02258,91396.0,91395.0,0.05684]
[1763473640512,0.02477803,91400.0,91399.0,0.04341]
[1763473640721,0.00219803,91400.0,91399.0,0.04341]
[1763473641028,0.04732803,91400.0,91399.0,0.04341]
[1763473641725,0.04732803,91400.0,91399.0,0.02156]
[1763473642020,0.04732803,91400.0,91399.0,0.04341]
[1763473643318,0.04832803,91400.0,91399.0,0.04341]
[1763473644521,0.04513,91396.0,91395.0,0.03499]
[1763473644922,0.04513,91396.0,91395.0,0.05684]
[1763473648125,0.04613,91396.0,91395.0,0.05684]
[1763473649632,0.001,91396.0,91395.0,0.05684]
[1763473650426,0.00219803,91400.0,91399.0,0.04368]
[1763473651626,0.0392074,91405.0,91404.0,0.04368]
[1763473651823,0.0392074,91405.0,91400.0,0.01441267]
[1763473651824,0.01306797,91412.0,91410.0,0.04368]
[1763473652024,0.00219803,91420.0,91419.0,0.04368]
[1763473652626,0.10350317,91420.0,91419.0,0.04368]
[1763473654032,0.0427,91411.0,91410.0,0.04384415]
[1763473654225,0.0427,91411.0,91410.0,0.04457682]
[1763473655424,0.0437,91411.0,91410.0,0.04457682]
[1763473656136,0.001,91411.0,91410.0,0.04457682]
[1763473656526,0.05860514,91423.0,91421.0,0.04368]
[1763473656727,0.0427,91423.0,91422.0,0.05736]
[1763473658031,0.0427,91411.0,91410.0,0.04384415]
[1763473658231,0.0427,91411.0,91410.0,0.04457682]
[1763473660036,0.0427,91411.0,91410.0,0.02210682]
[1763473660239,0.0427,91411.0,91410.0,0.04457682]
[1763473662735,0.02116,91411.0,91410.0,0.04457682]
[1763473662934,0.1746349,91420.0,91419.0,0.04368]
[1763473663234,0.04489803,91420.0,91419.0,0.04368]
[1763473663742,0.0427,91411.0,91410.0,0.00016415]
[1763473663945,0.0427,91411.0,91410.0,0.04457682]
[1763473664944,0.0427,91411.0,91410.0,0.04557682]
[1763473665643,0.0427,91411.0,91410.0,0.04457682]
[1763473666436,0.0437,91411.0,91410.0,0.04457682]
[1763473668131,0.0437,91411.0,91410.0,0.00016415]
[1763473668333,0.10230514,91411.0,91410.0,0.00016415]
[1763473668948,0.10130514,91411.0,91410.0,0.04384415]
[1763473669238,0.0437,91411.0,91410.0,0.04384415]
[1763473669741,0.10244704,91411.0,91410.0,0.02137415]
[1763473669947,0.0437,91411.0,91410.0,0.02137415]
[1763473670240,0.0437,91411.0,91400.0,0.02121]
[1763473670241,0.0427,91401.0,91400.0,0.02121]
[1763473670647,0.0427,91401.0,91400.0,0.05736]
[1763473671043,0.0427,91401.0,91400.0,0.05809267]
[1763473671441,0.02116,91401.0,91400.0,0.05809267]
[1763473671946,0.0427,91401.0,91400.0,0.05809267]
[1763473673451,0.0427,91396.0,91395.0,0.05711]
[1763473676143,0.0427,91392.0,91391.0,0.00016415]
[1763473676341,0.00219803,91400.0,91378.0,0.04368]
[1763473676342,0.0427,91379.0,91378.0,0.04368]
[1763473676535,0.0427,91379.0,91370.0,0.03933886]
[1763473676536,0.0427,91372.0,91371.0,0.04368]
[1763473676737,0.05344869,91372.0,91371.0,0.04368]
[1763473676947,0.05344869,91372.0,91371.0,0.02121]
[1763473677145,0.04489,91367.0,91353.0,0.02947982]
[1763473677348,0.04489,91351.0,91350.0,0.07409982]
[1763473677647,0.25619525,91360.0,91359.0,0.04462]
[1763473677949,0.04725218,91360.0,91359.0,0.04462]
[1763473679142,0.04625218,91360.0,91359.0,0.04462]
[1763473679639,0.00219803,91360.0,91359.0,0.04462]
[1763473680441,0.13225003,91369.0,91368.0,0.0578]
[1763473680642,0.00016415,91369.0,91368.0,0.0578]
[1763473681553,0.13208588,91380.0,91368.0,0.0578]
[1763473681554,0.13208588,91380.0,91379.0,0.04462]
[1763473681851,0.05578399,91387.0,91386.0,0.0578]
[1763473682044,0.04489,91387.0,91386.0,0.0578]
[1763473682245,0.03904521,91392.0,91391.0,0.04462]
[1763473682444,0.03904521,91392.0,91390.0,0.00219803]
[1763473682445,0.03904521,91404.0,91403.0,0.04462]
[1763473682653,0.05572162,91407.0,91406.0,0.04462]
[1763473682848,0.04489,91401.0,91400.0,0.04681803]
[1763473684143,0.04489,91401.0,91400.0,0.02395803]
[1763473684448,0.04489,91401.0,91395.0,0.01318]
[1763473684449,0.04489,91396.0,91395.0,0.03494]
[1763473685450,0.04489,91391.0,91386.0,0.01318]
[1763473685644,0.04489,91391.0,91370.0,0.01318]
[1763473685645,0.04489,91383.0,91380.0,0.00219803]
[1763473685847,0.04489,91383.0,91382.0,0.04478415]
[1763473686853,0.00016415,91392.0,91391.0,0.04462]
[1763473687153,0.04505415,91392.0,91391.0,0.04462]
[1763473688047,0.00016415,91392.0,91391.0,0.04462]
[1763473689051,0.05875489,91408.0,91405.0,0.04462]
[1763473689052,0.0108199,91408.0,91405.0,0.04462]
[1763473689250,0.13208588,91410.0,91405.0,0.04462]
[1763473690546,0.00127351,91406.0,91405.0,0.04462]
[1763473691153,0.00027351,91406.0,91405.0,0.04462]
[1763473691455,0.04489,91383.0,91382.0,0.00016415]
[1763473691755,0.04489,91383.0,91382.0,0.04478415]
[1763473692244,0.04489,91383.0,91382.0,0.00016415]
[1763473693058,0.08393521,91383.0,91382.0,0.00016415]
[1763473694156,0.08393521,91383.0,91382.0,0.00116415]
[1763473694857,0.08393521,91383.0,91382.0,0.00016415]
[1763473695054,0.08493521,91383.0,91382.0,0.00016415]
[1763473695555,0.001,91383.0,91382.0,0.04478415]
[1763473695756,0.00010524,91392.0,91391.0,0.04462]
[1763473696060,0.05875489,91404.0,91403.0,0.04462]
[1763473696061,0.03904521,91404.0,91403.0,0.04462]
[1763473696244,0.03904521,91405.0,91404.0,0.04462]
[1763473696448,0.17113109,91410.0,91405.0,0.04462]
[1763473696655,0.13208588,91410.0,91405.0,0.04462]
[1763473696956,0.17113109,91410.0,91405.0,0.04462]
[1763473697359,0.13208588,91410.0,91405.0,0.04462]
[1763473698257,0.00127351,91406.0,91405.0,0.04462]
[1763473703557,3.51e-06,91406.0,91405.0,0.04462]
[1763473704165,0.03904521,91421.0,91420.0,0.05716]
[1763473704363,0.03904521,91423.0,91421.0,0.04376]
[1763473704553,0.03904521,91423.0,91420.0,0.01559803]
[1763473704554,0.03904521,91425.0,91424.0,0.04376]
[1763473704860,0.03904521,91425.0,91420.0,0.01559803]
[1763473704861,0.05875489,91427.0,91420.0,0.01559803]
[1763473705158,0.0461,91427.0,91426.0,0.04376]
[1763473705353,0.10465619,91427.0,91426.0,0.04376]
[1763473706161,0.05855619,91427.0,91426.0,0.04376]
[1763473706351,0.05855619,91428.0,91427.0,0.04376]
[1763473706750,0.10465619,91428.0,91427.0,0.04376]
[1763473707159,0.05855619,91428.0,91427.0,0.04376]
[1763473707757,0.05855619,91429.0,91427.0,0.04376]
[1763473708062,0.05855619,91432.0,91431.0,0.04389]
[1763473708257,0.05855619,91436.0,91434.0,0.04389]
[1763473708459,0.27970671,91440.0,91439.0,0.04389]
[1763473708867,0.27521765,91440.0,91439.0,0.04389]
[1763473709265,0.3337997,91440.0,91439.0,0.04389]
[1763473709766,0.3347997,91440.0,91439.0,0.04389]
[1763473710363,0.23289765,91440.0,91439.0,0.04389]
[1763473710565,0.04004678,91440.0,91439.0,0.04389]
[1763473710864,0.001,91440.0,91439.0,0.04389]
[1763473711765,0.001,91440.0,91430.0,0.01380406]
[1763473711766,3.39e-06,91446.0,91445.0,0.04389]
[1763473713471,0.03904678,91469.0,91467.0,0.04389]
[1763473713769,0.2601973,91470.0,91469.0,0.04389]
[1763473714264,0.03904678,91473.0,91471.0,0.04389]
[1763473714463,0.22115052,91480.0,91479.0,0.04389]
[1763473714964,0.00027327,91486.0,91485.0,0.04389]
[1763473716659,0.00127327,91486.0,91485.0,0.04389]
[1763473717773,0.04332,91481.0,91480.0,0.05972803]
[1763473717959,0.02346327,91486.0,91485.0,0.04389]
[1763473718264,0.02346327,91486.0,91480.0,0.01583803]
[1763473718265,0.04332,91481.0,91480.0,0.00219803]
[1763473718468,0.04332,91481.0,91480.0,0.05972803]
[1763473718856,0.04332,91471.0,91470.0,0.05753]
[1763473719061,0.04332,91471.0,91470.0,0.00219803]
[1763473719260,0.22115052,91480.0,91460.0,0.01364]
[1763473719261,0.04332,91461.0,91460.0,0.05753]
[1763473719465,0.22940052,91480.0,91460.0,0.05753]
[1763473719466,0.22115052,91470.0,91460.0,0.05972803]
[1763473719661,0.04332,91461.0,91460.0,0.05972803]
[1763473720364,0.05251,91460.0,91459.0,0.00016406]
[1763473720563,0.02219,91441.0,91440.0,0.05753]
[1763473720763,0.02219,91441.0,91440.0,0.05972803]
[1763473721258,0.02219,91431.0,91430.0,0.05753]
[1763473721569,0.04332,91431.0,91430.0,0.00219803]
[1763473721766,0.04332,91422.0,91421.0,0.00016406]
[1763473722068,0.22131427,91440.0,91439.0,0.04389]
[1763473722462,0.04332,91429.0,91421.0,0.00016406]
[1763473723265,0.04332,91429.0,91428.0,0.02112]
[1763473725061,0.04332,91429.0,91428.0,0.05753]
[1763473725366,0.02219,91429.0,91428.0,0.05753]
[1763473725567,0.22115052,91438.0,91430.0,0.00219803]
[1763473725775,0.04332,91438.0,91437.0,0.04389]
[1763473726076,0.04332,91438.0,91428.0,0.01364]
[1763473726372,0.04332,91438.0,91437.0,0.04389]
[1763473726574,0.04332,91438.0,91428.0,0.01364]
[1763473726768,0.04332,91438.0,91437.0,0.04389]
[1763473727373,0.04332,91429.0,91421.0,0.01380406]
[1763473727573,0.04332,91429.0,91428.0,0.04389]
[1763473727880,0.22115052,91431.0,91430.0,0.04608803]
[1763473730267,0.24334052,91431.0,91430.0,0.04608803]
[1763473730473,0.26447052,91431.0,91430.0,0.00219803]
[1763473732078,0.04332,91431.0,91430.0,0.05972803]
[1763473732578,0.04332,91431.0,91430.0,0.00219803]
[1763473732779,0.04332,91431.0,91430.0,0.05972803]
[1763473735878,0.04332,91431.0,91430.0,0.00219803]
[1763473736175,0.04332,91431.0,91421.0,0.01380406]
[1763473736176,0.04332,91422.0,91421.0,0.05769406]
[1763473736380,0.04332,91422.0,91421.0,0.00016406]
[1763473737082,0.01012,91400.0,91364.0,0.07854767]
[1763473737277,0.01012,91400.0,91356.0,0.13616912]
[1763473737278,0.22115052,91374.0,91350.0,0.01364]
[1763473737583,0.22115052,91360.0,91348.0,0.01072631]
[1763473737878,0.22115052,91360.0,91310.0,0.01352]
[1763473737879,0.03904678,91349.0,91345.0,0.00016415]
[1763473738083,0.05823197,91346.0,91345.0,0.02167415]
[1763473738389,0.07997931,91346.0,91345.0,0.04326415]
[1763473739276,0.16863652,91346.0,91345.0,0.00016415]
[1763473739477,0.16863652,91346.0,91340.0,0.01352]
[1763473739478,0.10944001,91345.0,91310.0,0.01352]
[1763473739677,0.22115052,91340.0,91310.0,0.01352]
[1763473739876,0.05523197,91331.0,91310.0,0.01352]
[1763473740177,0.07999376,91331.0,91330.0,0.05881803]
[1763473740372,0.05533883,91331.0,91330.0,0.05881803]
[1763473740679,0.07998883,91331.0,91330.0,0.05662]
[1763473740878,0.01314,91327.0,91321.0,0.00016415]
[1763473741271,0.03778965,91327.0,91326.0,0.02186375]
[1763473741579,0.05423197,91327.0,91326.0,0.04337375]
[1763473742379,0.05423197,91327.0,91326.0,0.04437375]
[1763473742577,0.01923197,91327.0,91326.0,0.04437375]
[1763473743975,0.04156197,91327.0,91326.0,0.04437375]
[1763473744176,0.01923197,91327.0,91326.0,0.04437375]
[1763473744478,0.01923197,91327.0,91326.0,0.00127375]
[1763473744479,0.06454883,91327.0,91326.0,0.00127375]
[1763473744685,0.04521,91322.0,91299.0,0.01352]
[1763473744883,0.22115052,91309.0,91308.0,0.0431]
[1763473745078,0.26281935,91309.0,91308.0,0.0431]
[1763473745980,0.24048935,91309.0,91308.0,0.0431]
[1763473746577,0.01933883,91309.0,91308.0,0.0431]
[1763473747391,0.06554883,91309.0,91299.0,0.01368425]
[1763473747691,0.06224394,91300.0,91299.0,0.00016425]
[1763473747886,0.06453414,91300.0,91299.0,0.00016425]
[1763473748681,0.06453414,91300.0,91279.0,0.04312]
[1763473748887,0.22115052,91299.0,91290.0,0.00073049]
[1763473749083,0.04521,91291.0,91290.0,0.00073049]
[1763473749383,0.04521,91274.0,91260.0,0.01352]
[1763473749587,0.04521,91274.0,91270.0,0.00073049]
[1763473749777,0.04521,91274.0,91273.0,0.00455606]
[1763473750179,0.04521,91274.0,91270.0,0.00073049]
[1763473750180,0.04521,91271.0,91270.0,0.00073049]
[1763473750472,0.00219803,91270.0,91258.0,0.00016434]
[1763473750677,0.22115052,91268.0,91260.0,0.04483049]
[1763473750879,0.22115052,91268.0,91260.0,0.05835049]
[1763473751682,0.22015052,91268.0,91260.0,0.05835049]
[1763473752085,0.04521,91261.0,91260.0,0.02332049]
[1763473752282,0.04535219,91261.0,91260.0,0.00173049]
[1763473752486,0.00014219,91261.0,91260.0,0.06035049]
[1763473753076,2.19e-06,91261.0,91260.0,0.46035049]
[1763473753276,0.00657,91312.0,91260.0,0.46035049]
[1763473753277,0.22115052,91290.0,91275.0,0.0431]
[1763473753488,4.34e-06,91276.0,91275.0,0.0431]
[1763473754279,0.22115052,91290.0,91289.0,0.0431]
[1763473754489,0.22115052,91300.0,91299.0,0.0431]
[1763473754694,0.26855855,91300.0,91273.0,0.01352]
[1763473754888,0.22115052,91290.0,91289.0,0.0431]
[1763473755077,0.22334855,91290.0,91289.0,0.0431]
[1763473756185,0.26855855,91290.0,91280.0,0.00016434]
[1763473756380,0.26855855,91290.0,91280.0,0.00089483]
[1763473756592,0.26855855,91290.0,91289.0,0.02159]
[1763473756885,0.22334855,91290.0,91289.0,0.0431]
[1763473757091,0.00219803,91290.0,91289.0,0.0431]
[1763473760082,0.00016434,91299.0,91290.0,0.00219803]
[1763473760288,0.00016434,91299.0,91298.0,0.0431]
[1763473760687,4.34e-06,91299.0,91298.0,0.0431]
[1763473761493,0.22115052,91330.0,91319.0,0.04387]
[1763473761788,0.24825258,91329.0,91320.0,0.00219803]
[1763473761985,0.02710206,91328.0,91320.0,0.00219803]
[1763473762190,0.04423,91321.0,91270.0,0.11392]
[1763473762386,0.22115052,91310.0,91300.0,0.04606803]
[1763473762589,0.22115052,91310.0,91309.0,0.02287]
[1763473762892,0.00016424,91313.0,91312.0,0.04387]
[1763473763686,0.02732077,91313.0,91312.0,0.04387]
[1763473763990,0.07155077,91313.0,91312.0,0.04387]
[1763473764197,0.04423,91311.0,91310.0,0.00219803]
[1763473764392,0.07138653,91311.0,91310.0,0.00219803]
[1763473764583,0.04956653,91311.0,91310.0,0.04606803]
[1763473764982,0.07138653,91311.0,91310.0,0.02506803]
[1763473765292,0.02715653,91311.0,91310.0,0.04606803]
[1763473765796,0.02815653,91311.0,91310.0,0.04606803]
[1763473765998,0.07238653,91311.0,91310.0,0.02506803]
[1763473766200,0.11143331,91311.0,91299.0,0.0139]
[1763473766496,0.05858205,91307.0,91302.0,0.04387]
[1763473766699,0.04423,91307.0,91306.0,0.04387]
[1763473766994,0.07156086,91307.0,91306.0,0.04387]
[1763473767785,0.02733086,91307.0,91306.0,0.04387]
[1763473768794,8.6e-07,91307.0,91306.0,0.04387]
[1763473768989,0.00100086,91307.0,91306.0,0.04387]
[1763473769189,0.03996109,91307.0,91306.0,0.04387]
[1763473769496,0.001,91307.0,91306.0,0.04387]
[1763473770499,0.05844191,91311.0,91310.0,0.04551803]
[1763473770805,0.00016424,91313.0,91312.0,0.04332]
[1763473771003,0.05844191,91319.0,91318.0,0.03066]
[1763473771300,0.05844191,91322.0,91320.0,0.03285803]
[1763473771494,0.05844191,91323.0,91322.0,0.03066]
[1763473772792,0.10331191,91323.0,91322.0,0.01533]
[1763473772993,0.04587,91323.0,91322.0,0.01533]
[1763473773402,0.02291,91323.0,91322.0,0.03066]
[1763473773604,0.001,91323.0,91322.0,0.03066]
[1763473773904,0.02391,91323.0,91322.0,0.03066]
[1763473774096,0.04687,91323.0,91322.0,0.03066]
[1763473774691,0.002,91323.0,91322.0,0.03066]
[1763473775494,0.04687,91323.0,91322.0,0.03066]
[1763473775893,0.002,91323.0,91322.0,0.03066]
[1763473777492,0.001,91323.0,91322.0,0.03066]
[1763473777998,0.00016424,91332.0,91331.0,0.03066]
[1763473780706,0.02652301,91332.0,91331.0,0.03066]
[1763473781204,0.07139301,91332.0,91331.0,0.03066]
[1763473781403,0.02652301,91332.0,91331.0,0.03066]
[1763473782403,0.07139301,91332.0,91331.0,0.01533]
[1763473783714,0.07139301,91332.0,91331.0,0.03066]
[1763473784804,0.04487,91331.0,91330.0,0.00219803]
[1763473785005,0.07122877,91331.0,91330.0,0.00219803]
[1763473785200,0.07122877,91331.0,91313.0,0.00016424]
[1763473785410,0.04487,91321.0,91320.0,0.03285803]
[1763473785708,0.07122877,91321.0,91320.0,0.03285803]
[1763473786907,0.02635877,91321.0,91320.0,0.03285803]
[1763473787113,0.02635877,91321.0,91320.0,0.00219803]
[1763473787317,0.02635877,91321.0,91320.0,0.03285803]
[1763473788713,0.02635877,91321.0,91320.0,0.03385803]
[1763473789311,0.02635877,91321.0,91320.0,0.03285803]
[1763473789917,0.04826877,91321.0,91320.0,0.03285803]
[1763473790119,0.07122877,91321.0,91320.0,0.03285803]
[1763473792312,0.04826877,91321.0,91320.0,0.03285803]
[1763473792514,0.02635877,91321.0,91320.0,0.03285803]
[1763473793614,0.04503424,91332.0,91331.0,0.03066]
[1763473793815,0.07060946,91332.0,91331.0,0.03066]
[1763473795705,0.07060946,91332.0,91330.0,0.00219803]
[1763473795706,0.04487,91331.0,91330.0,0.01752803]
[1763473795911,0.07044522,91331.0,91330.0,0.03285803]
[1763473796418,0.02557522,91331.0,91330.0,0.03285803]
[1763473800425,0.07064522,91331.0,91330.0,0.03285803]
[1763473801420,0.02513732,91331.0,91330.0,0.25961123]
[1763473801621,0.03908772,91347.0,91340.0,0.1096012]
[1763473801821,0.05899,91360.0,91340.0,0.00219803]
[1763473802225,0.03576,91350.0,91340.0,0.00219803]
[1763473802414,0.05769,91350.0,91340.0,0.00219803]
[1763473802615,0.02193,91341.0,91340.0,0.01853803]
[1763473802819,0.02193,91341.0,91340.0,0.03487803]
[1763473802820,0.04507,91341.0,91340.0,0.03487803]
[1763473803421,0.04507,91341.0,91340.0,0.02053803]
[1763473803719,0.04507,91341.0,91340.0,0.03687803]
[1763473803914,0.05769,91350.0,91349.0,0.03268]
[1763473804520,0.00016381,91354.0,91353.0,0.03268]
[1763473804721,0.04523381,91354.0,91353.0,0.03268]
[1763473804920,0.04523381,91354.0,91340.0,0.03368]
[1763473804921,0.04507,91341.0,91340.0,0.03368]
[1763473805123,0.04507,91341.0,91340.0,0.03587803]
[1763473806027,0.04507,91341.0,91340.0,0.03487803]
[1763473806223,0.04507,91341.0,91340.0,0.03587803]
[1763473806529,0.01262,91344.0,91343.0,0.03268]
[1763473806930,0.05769,91344.0,91343.0,0.03268]
[1763473808018,0.03907255,91350.0,91349.0,0.03268]
[1763473808218,0.08414255,91351.0,91350.0,0.03487803]
[1763473808929,0.08414255,91351.0,91350.0,0.00219803]
[1763473809126,0.04507,91344.0,91343.0,0.001]
[1763473809318,0.08414255,91344.0,91343.0,0.001]
[1763473809627,0.04507,91344.0,91343.0,0.001]
[1763473810129,0.04507,91337.0,91336.0,0.00016424]
[1763473810829,0.04407,91337.0,91336.0,0.00016424]
[1763473811623,0.04407,91337.0,91336.0,0.00116424]
[1763473811924,0.04507,91341.0,91340.0,0.03687803]
[1763473812918,0.04507,91341.0,91340.0,0.00219803]
[1763473813323,0.03907273,91345.0,91340.0,0.03687803]
[1763473813528,0.03907273,91346.0,91345.0,0.03468]
[1763473813735,0.08414273,91353.0,91352.0,0.01734]
[1763473814028,0.02519976,91353.0,91352.0,0.03468]
[1763473814231,1e-08,91354.0,91353.0,0.2537056]
[1763473814531,0.00027363,91366.0,91365.0,0.03468]
[1763473815120,0.05796363,91366.0,91365.0,0.03468]
[1763473815834,0.08315045,91366.0,91365.0,0.03468]
[1763473816223,0.05796363,91366.0,91365.0,0.03468]
[1763473817828,0.01289363,91366.0,91365.0,0.03468]
[1763473818835,0.00027363,91366.0,91365.0,0.03468]
[1763473819736,0.01262,91388.0,91360.0,0.00219803]
[1763473819937,0.02516259,91387.0,91360.0,0.00219803]
[1763473820135,0.02516259,91386.0,91360.0,0.00219803]
[1763473820338,0.02516259,91385.0,91360.0,0.00219803]
[1763473820531,0.13221567,91380.0,91360.0,0.00219803]
[1763473820838,0.02516259,91379.0,91360.0,0.00219803]
[1763473821037,0.01308,91377.0,91360.0,0.00219803]
[1763473821432,0.06917682,91376.0,91375.0,0.01734]
[1763473821633,0.04429,91376.0,91375.0,0.03468]
[1763473821837,0.02309,91376.0,91375.0,0.03468]
[1763473822229,0.02309,91376.0,91370.0,0.00219803]
[1763473822230,0.05691,91388.0,91387.0,0.03468]
[1763473822537,0.02488928,91388.0,91387.0,0.03468]
[1763473822733,0.03571,91399.0,91398.0,0.03468]
[1763473822931,0.08180375,91399.0,91398.0,0.03468]
[1763473824136,0.08180375,91399.0,91378.0,0.00016415]
[1763473824339,0.04429,91391.0,91390.0,0.01953803]
[1763473824539,0.04429,91391.0,91390.0,0.03687803]
[1763473825637,0.01262,91399.0,91390.0,0.03687803]
[1763473825837,0.04429,91391.0,91390.0,0.03687803]
[1763473826339,0.23371926,91410.0,91390.0,0.03687803]
[1763473826340,0.01262,91410.0,91398.0,0.03468]
[1763473826542,0.01262,91410.0,91386.0,0.2562]
[1763473826543,0.02485594,91409.0,91400.0,0.00219803]
[1763473826840,0.01262,91410.0,91400.0,0.00219803]
[1763473826841,0.02485594,91408.0,91400.0,0.00219803]
[1763473827037,0.01262,91410.0,91400.0,0.00219803]
[1763473827243,0.01308,91421.0,91409.0,0.03468]
[1763473827446,0.01308,91421.0,91410.0,0.00219803]
[1763473827447,0.02485597,91420.0,91410.0,0.00219803]
[1763473827636,0.01308,91421.0,91410.0,0.00219803]
[1763473827637,0.02485597,91419.0,91410.0,0.00219803]
[1763473827837,0.01308,91421.0,91417.0,0.01734]
[1763473827838,0.06979597,91418.0,91417.0,0.01734]
[1763473828236,0.06979597,91418.0,91406.0,0.00016415]
[1763473828437,0.04494,91411.0,91410.0,0.03687803]
[1763473828947,0.04494,91411.0,91410.0,0.00219803]
[1763473829350,0.04494,91411.0,91410.0,0.03687803]
[1763473831735,0.04494,91411.0,91410.0,0.00219803]
[1763473831941,0.04494,91411.0,91410.0,0.00319803]
[1763473832850,0.04494,91411.0,91410.0,0.00219803]
[1763473833743,0.06977632,91411.0,91410.0,0.00219803]
[1763473834248,0.04494,91407.0,91350.0,0.1095886]
[1763473834451,0.04494,91381.0,91380.0,0.00219803]
[1763473835448,0.04494,91372.0,91371.0,0.00016415]
[1763473836446,0.04494,91346.0,91345.0,0.0426]
[1763473836747,0.05798,91344.0,91340.0,0.00073049]
[1763473839157,0.05798,91344.0,91343.0,0.00110629]
[1763473840368,0.05798,91344.0,91343.0,0.00210629]
[1763473841874,0.05798,91344.0,91343.0,0.01960629]
[1763473842065,0.00016415,91353.0,91343.0,0.03710629]
[1763473842262,0.05798,91344.0,91343.0,0.03710629]
[1763473842965,0.05798,91344.0,91343.0,0.00210629]
[1763473843169,0.05798,91344.0,91343.0,0.00110629]
[1763473843367,0.05798,91344.0,91343.0,0.00210629]
[1763473843764,0.05798,91344.0,91343.0,0.03710629]
[1763473846363,0.05798,91344.0,91343.0,0.00210629]
[1763473847667,0.04494,91335.0,91334.0,0.00016415]
[1763473848775,0.04504629,91335.0,91334.0,0.00016415]
[1763473849172,0.04504629,91335.0,91334.0,0.00216415]
[1763473849479,0.04504629,91335.0,91334.0,0.00316415]
[1763473854074,0.04504629,91335.0,91318.0,0.26364]
[1763473854075,0.04494,91327.0,91318.0,0.26364]
[1763473854878,0.04494,91327.0,91300.0,0.00284]
[1763473855084,0.04494,91327.0,91311.0,0.26496]
[1763473855282,0.04494,91327.0,91300.0,0.00284]
[1763473855283,0.04494,91327.0,91317.0,0.00016425]
[1763473855477,0.04494,91318.0,91317.0,0.00016425]
[1763473855982,0.04294,91318.0,91317.0,0.00016425]
[1763473856185,0.04194,91318.0,91317.0,0.00016425]
[1763473856980,0.04204629,91318.0,91317.0,0.00116425]
[1763473857185,0.04204629,91318.0,91317.0,0.00216425]
[1763473857678,0.04204629,91318.0,91292.0,0.47936761]
[1763473857877,0.05827803,91300.0,91293.0,0.22944]
[1763473858074,0.05827803,91300.0,91293.0,0.27274]
[1763473858075,0.04345,91294.0,91293.0,0.27274]
[1763473858680,0.04345,91294.0,91293.0,0.22944]
[1763473858883,0.04245,91294.0,91293.0,0.22944]
[1763473859084,0.04245,91294.0,91293.0,0.25153]
[1763473859273,0.04245,91294.0,91293.0,0.27274]
[1763473859474,0.00016425,91303.0,91302.0,0.0433]
[1763473860173,0.02188425,91303.0,91302.0,0.0433]
[1763473860479,0.04345,91294.0,91293.0,0.27674]
[1763473860675,0.02172,91294.0,91293.0,0.27674]
[1763473860981,0.04345,91294.0,91293.0,0.25553]
[1763473861174,0.04345,91294.0,91293.0,0.23344]
[1763473861175,0.04355629,91294.0,91293.0,0.23344]
[1763473861783,0.04355629,91294.0,91293.0,0.25553]
[1763473862483,0.04355629,91294.0,91293.0,0.25353]
[1763473862674,0.04255629,91294.0,91293.0,0.25153]
[1763473863077,0.00010629,91294.0,91293.0,0.27274]
[1763473863386,0.00016425,91303.0,91302.0,0.0433]
[1763473864278,0.04361425,91303.0,91302.0,0.0433]
[1763473864479,0.04361425,91303.0,91302.0,0.02209]
[1763473865178,0.04361425,91303.0,91302.0,0.0433]
[1763473865889,0.04345,91294.0,91293.0,0.25153]
[1763473866389,0.00116425,91303.0,91302.0,0.0433]
[1763473866587,0.02288425,91303.0,91302.0,0.0433]